Cogmind - Beta 15 @@@ ROGUE MODE // 2025.05.24 @ 17:40:59 Player: OctagonalPrism Result: Self-destructed Performance ------------- Evolutions (8) 4000 Regions Visited (16) 3200 Robots Destroyed (122) 610 Value Destroyed (3256) 3256 Prototype IDs (49) 980 Alien Tech Used (0) 0 Bonus (1800) 1800 TOTAL SCORE: 13846 Bonus ------- Registered with UFD 300 Met Optimus in HQ 500 Hacked Protovariant 500 Scanned by Researcher 500 Cogmind --------- Core Integrity 281/1450 Matter 176/300 Energy 68/100 System Corruption 5% Temperature Cool (0) Movement Core (50) Location -2/Research Parts ------- > --- POWER (1) -------- (None) > --- PROPULSION (6) --- (None) > --- UTILITY (14) ----- Experimental Signal Interpreter Advanced Terrain Scan Processor Advanced Terrain Scan Processor Hacking Suite Hacking Suite Hacking Suite Improved Hacking Suite System Shield > --- WEAPON (2) ------- (None) > --- INVENTORY (5) ---- Quantum Reactor Hacking Suite Authchip [Propulsion] System Restoration Module Vibroblade Peak State ------------ > --- POWER ------------ Quantum Reactor > --- PROPULSION ------- Impulse Thruster Array Impulse Thruster Array Impulse Thruster Array > --- UTILITY ---------- Advanced Sensor Array Long-range Sensor Array Experimental Signal Interpreter Long-range Terrain Scanner Advanced Terrain Scan Processor Advanced Terrain Scan Processor Advanced ECM Suite Hacking Suite Hacking Suite Hacking Suite System Shield System Shield > --- WEAPON ----------- Vibroblade > --- INVENTORY -------- Light Ion Engine Hacking Suite Authchip [Propulsion] System Restoration Module Vibroblade [Rating: 121] Favorites ----------- Power Micro Antimatter Reactor Engine Improved Ion Engine Power Core Light Nuclear Core Reactor Micro Antimatter Reactor Propulsion Compact Wheel Treads Improved Treads Leg Aluminum Leg Wheel Compact Wheel Hover Unit Improved Gravmag System Flight Unit Impulse Thruster Array Utility Hacking Suite Device Improved Terrain Scanner Storage Small Storage Unit Processor Improved Terrain Scan Processor Hackware Hacking Suite Protection Hardened Light Armor Plating Weapon Scythe Energy Gun Advanced Beam Rifle Energy Cannon Advanced Beam Cannon Ballistic Gun Enhanced Autogun Impact Weapon Hammer Slashing Weapon Scythe Piercing Weapon Enhanced Force Lance Build | -11 -10 -9 -8 -8 -8 -8 -6 -6 -6 -5 -4 -4 -4 -3 -3 -2 ------- Run | Yrd Mat Mat Mat Sto Rec Scr Fac Was Fac Fac Fac Was Fac Res Tes Res Slots Evolved 16 | . . 2 2 . . . 4 . . 2 2 . . 2 . 2 Power . | . . . . . . . . . . . . . . . . . Propulsion 4 | . . . . . . . 1 . . 1 . . . 2 . . Utility 12 | . . 2 2 . . . 3 . . 1 2 . . . . 2 Weapon . | . . . . . . . . . . . . . . . . . Parts Attached 125 | 6 7 26 23 3 3 . 6 1 8 5 8 2 5 4 10 8 Power 14 | 1 1 5 1 1 1 . . 1 . . . . . . 1 2 Engine 8 | 1 1 4 . . 1 . . . . . . . . . . 1 Core 3 | . . 1 1 1 . . . . . . . . . . . . Reactor 3 | . . . . . . . . 1 . . . . . . 1 1 Propulsion 37 | 2 1 8 8 . . . 1 . 3 2 3 . 2 1 4 2 Treads 6 | . . 5 1 . . . . . . . . . . . . . Leg 4 | . . . 3 . . . . . . . . . . . 1 . Wheel 8 | 2 1 3 2 . . . . . . . . . . . . . Hover 3 | . . . . . . . 1 . . . . . 1 1 . . Flight 16 | . . . 2 . . . . . 3 2 3 . 1 . 3 2 Utility 52 | 1 3 6 9 . 2 . 4 . 5 3 5 2 3 1 4 4 Device 22 | . 2 2 4 . . . . . 2 1 3 1 1 1 2 3 Storage 2 | 1 . . 1 . . . . . . . . . . . . . Processor 9 | . . 1 1 . . . 2 . 1 . 1 . 2 . 1 . Hackware 11 | . . . 1 . . . 2 . 2 2 1 1 . . 1 1 Protection 8 | . 1 3 2 . 2 . . . . . . . . . . . Artifact . | . . . . . . . . . . . . . . . . . Weapon 22 | 2 2 7 5 2 . . 1 . . . . . . 2 1 . Energy Gun 8 | 2 . 2 3 1 . . . . . . . . . . . . Energy Cannon 3 | . 1 . 1 1 . . . . . . . . . . . . Ballistic Gun 4 | . 1 3 . . . . . . . . . . . . . . Ballistic Cannon . | . . . . . . . . . . . . . . . . . Launcher . | . . . . . . . . . . . . . . . . . Special Weapon . | . . . . . . . . . . . . . . . . . Impact Weapon 1 | . . 1 . . . . . . . . . . . . . . Slashing Weapon 4 | . . 1 1 . . . 1 . . . . . . . 1 . Piercing Weapon 2 | . . . . . . . . . . . . . . 2 . . Special Melee Weapon . | . . . . . . . . . . . . . . . . . Unidentified Prototypes 11 | . . 1 1 1 . . . . 1 . . . . . 6 1 Parts Lost 55 | . 1 7 12 1 . . 7 . 2 1 4 . 4 1 3 12 Power 8 | . . 3 1 1 . . 1 . . . . . . . 1 1 Propulsion 19 | . . 2 5 . . . 2 . 1 1 2 . 2 . . 4 Utility 21 | . 1 1 4 . . . 2 . 1 . 2 . 2 . 2 6 Weapon 7 | . . 1 2 . . . 2 . . . . . . 1 . 1 Highest Loss Streak 10 | . 1 1 7 1 . . 7 . 1 1 3 . 3 1 1 10 To Critical Strikes . | . . . . . . . . . . . . . . . . . Average Backups 6 | 1 7 7 7 8 8 8 5 4 3 3 4 4 4 3 4 4 Power . | . 1 . . . . . . . . 1 . . . . . . Propulsion 1 | 1 2 1 1 2 2 2 . . . . . . . . . . Utility 3 | . 2 4 4 5 5 5 3 3 2 2 3 4 3 3 3 3 Weapon . | . 1 1 1 1 1 1 1 1 . . . . 1 . 1 1 Tool/Special . | . . . . . . . . . . . . . . . . . Unused Backups 9 | . 1 . 1 . . . . . 1 1 1 . . . . 4 Power 2 | . . . . . . . . . 1 . 1 . . . . . Propulsion . | . . . . . . . . . . . . . . . . . Utility 6 | . 1 . 1 . . . . . . 1 . . . . . 3 Weapon 1 | . . . . . . . . . . . . . . . . 1 Tool/Special . | . . . . . . . . . . . . . . . . . Average Slot Usage (%) 89 | . 98 98 89 99 100 100 73 62 84 80 90 88 83 62 77 65 Engine 3 | . 14 7 . . 5 9 1 . . . . . . . . . Core 1 | . . 3 8 8 3 . . . . . . . . . . . Reactor 1 | . . . . . . . . 4 6 4 4 5 4 2 3 1 Treads 1 | . . 7 1 . . . . . . . . . . . . . Wheel 8 | . 28 14 5 18 18 18 . . . . . . . . . . Flight 5 | . . . . . . . 11 . 16 11 18 15 10 . 12 10 Device 12 | . 6 16 15 15 9 9 11 11 10 16 14 10 9 9 12 11 Storage 6 | . 14 11 9 9 9 9 5 . . . . . . . . . Processor 12 | . . 10 9 18 18 18 14 20 13 11 14 15 15 14 14 13 Hackware 14 | . . . 8 9 9 9 19 20 29 29 31 35 35 23 26 24 Protection 3 | . 5 5 5 2 8 9 . . . . . . . . . . Energy Gun 5 | . 16 7 8 9 9 9 . . . . . . . . . . Energy Cannon 2 | . 4 . 4 2 8 9 . . . . . . . . . . Ballistic Gun 2 | . 7 11 . . . . . . . . . . . . . . Slashing Weapon 2 | . . 1 3 5 . . 5 . 5 5 5 5 5 1 1 3 Peak Build Rating 121 | 6 8 22 31 32 32 30 40 45 54 65 81 85 86 76 119 121 Average Rating 44 | 4 7 19 25 29 30 30 34 41 48 54 72 80 82 62 107 100 On Entrance 43 | . 6 8 22 29 30 30 30 34 45 53 62 77 81 49 74 101 Naked Turns . | . . . . . . . . . . . . . . . . . Heaviest Build 30 | 12 17 24 22 20 24 24 24 10 12 12 13 12 14 21 27 30 Greatest Support 100 | 26 26 46 32 32 32 32 32 20 22 34 27 27 30 26 100 48 Greatest Overweight (x) 6 | . . 1 6 . . . 6 . 2 . . . 1 . 1 3 Average Overweight (x) . | . . . . . . . . . . . . . . . . . Largest Inventory Capacity 8 | 8 8 8 8 8 8 8 8 5 5 5 5 5 5 5 5 5 Average Capacity 6 | 7 8 8 8 8 8 8 7 5 5 5 5 5 5 5 5 5 Most Carried 8 | 4 8 8 8 8 8 8 8 5 5 5 5 5 5 5 5 5 Average Carried 6 | 2 7 7 7 8 8 8 5 4 3 3 4 4 4 3 4 4 Final Capacity 8 | 8 8 8 8 8 8 8 5 5 5 5 5 5 5 5 5 5 Final Carried 8 | 4 8 8 8 8 8 8 5 4 3 4 5 5 5 4 4 5 Class Distribution -------------------- 28% | Scavenger-Mutant 13% | Hacker-Scout 10% | Mutant 9% | Skirmisher 7% | Hacker-Ninja 6% | Wizard-Scout 6% | Scavenger-Assassin 5% | Hacker-Mutant 4% | Wizard-Ninja Dominant Class ---------------- Mutant | -10/Materials Skirmisher | -9/Materials Scavenger-Mutant | -8/Materials Scavenger-Assassin | -8/Storage Scavenger-Mutant | -8/Recycling Scavenger-Mutant | -8/Scraptown Hacker-Scout | -6/Factory Hacker-Scout | -6/Waste Hacker-Scout | -6/Factory Hacker-Scout | -5/Factory Wizard-Ninja | -4/Factory Wizard-Scout | -4/Waste Wizard-Scout | -4/Factory Hacker-Mutant | -3/Research Hacker-Ninja | -3/Testing Hacker-Ninja | -2/Research Resources | -11 -10 -9 -8 -8 -8 -8 -6 -6 -6 -5 -4 -4 -4 -3 -3 -2 ----------- Run | Yrd Mat Mat Mat Sto Rec Scr Fac Was Fac Fac Fac Was Fac Res Tes Res Matter Collected 2790 | 199 169 1323 270 102 83 . 51 . 109 24 150 143 45 . 24 98 Remotely . | . . . . . . . . . . . . . . . . . Salvage Created 4623 | 24 489 1813 1171 102 532 . 75 . 93 24 10 . 184 . 24 82 Parts 257 | 2 34 103 46 6 23 . 5 . 6 5 2 . 12 . 4 9 Haulers Intercepted 2 | . 1 1 . . . . . . . . . . . . . . Recyclers Shooed 3 | 1 . . 2 . . . . . . . . . . . . . Parts Field Recycled . | . . . . . . . . . . . . . . . . . Retrieved Matter . | . . . . . . . . . . . . . . . . . Parts Self-Destructed . | . . . . . . . . . . . . . . . . . Prevented . | . . . . . . . . . . . . . . . . . Kills | -11 -10 -9 -8 -8 -8 -8 -6 -6 -6 -5 -4 -4 -4 -3 -3 -2 ------- Run | Yrd Mat Mat Mat Sto Rec Scr Fac Was Fac Fac Fac Was Fac Res Tes Res Combat Hostiles Destroyed 76 | . 10 30 21 2 6 . 1 . 1 . . . 4 . . 1 Melee 13 | . . 1 6 . . . . . 1 . . . 4 . . 1 Guns 49 | . 4 29 12 . 3 . 1 . . . . . . . . . Cannons 13 | . 5 . 3 2 3 . . . . . . . . . . . AOE 1 | . 1 . . . . . . . . . . . . . . . Classes Destroyed 12 | 1 6 4 . . 1 . . . . . . . . . . . Worker 10 | . . 5 1 . . . . . 2 . . . 1 . . 1 Builder 8 | . . 1 1 . 1 . 1 . 1 . . . 1 . . 2 Tunneler 2 | 1 . 1 . . . . . . . . . . . . . . Hauler 2 | . 1 1 . . . . . . . . . . . . . . Recycler 7 | . 1 2 2 . 2 . . . . . . . . . . . Operator 10 | . 1 2 3 . . . . . . 1 1 . 1 . 1 . Watcher 7 | . 1 5 . . . . 1 . . . . . . . . . Swarmer 17 | . 5 3 3 . . . 1 . . . . . 4 . . 1 Grunt 39 | . 5 20 14 . . . . . . . . . . . . . Duelist 1 | . . 1 . . . . . . . . . . . . . . Sentry 17 | . . 6 4 2 5 . . . . . . . . . . . Programmer 2 | . . . . . 1 . . . 1 . . . . . . . Best Kill Streak 9 | 1 4 9 6 1 4 . 1 . 2 1 1 . 3 . . 1 Combat Bots Only 6 | . 3 6 6 1 3 . 1 . 1 . . . 3 . . 1 Max Kills in Single Turn 2 | 1 2 2 2 1 2 . 1 . 1 1 1 . 1 . 1 1 Gunslinging . | . . . . . . . . . . . . . . . . . Exploded 1 | . 1 . . . . . . . . . . . . . . . Melee 1 | . . 1 1 . . . . . 1 . . . 1 . . 1 Uniques/NPCs Destroyed . | . . . . . . . . . . . . . . . . . Combat | -11 -10 -9 -8 -8 -8 -8 -6 -6 -6 -5 -4 -4 -4 -3 -3 -2 -------- Run | Yrd Mat Mat Mat Sto Rec Scr Fac Was Fac Fac Fac Was Fac Res Tes Res Hostile Shots Fired 899 | . 56 149 139 3 12 . 147 . 30 11 10 . 105 4 53 180 Missed 333 | . 15 32 47 . 6 . 51 . 16 5 6 . 45 2 17 91 Hits 566 | . 41 117 92 3 6 . 96 . 14 6 4 . 60 2 36 89 Melee 8 | . . 8 . . . . . . . . . . . . . . Projectile 558 | . 41 109 92 3 6 . 96 . 14 6 4 . 60 2 36 89 AOE 2 | . . . . . . . 1 . . . . . . . 1 . Critical Strikes 23 | . . 4 6 . 2 . 1 . . 1 . . 3 . 3 3 Damage Taken 8815 | . 392 1662 1402 44 90 . 1372 . 152 120 145 . 874 60 567 1935 Core 2976 | . 58 186 284 17 32 . 529 . 64 56 16 . 378 38 149 1169 Absorbed by Shields 99 | . . . . . . . . . . . . . . . 99 . Redirected to Shielding 107 | . . 88 10 . 9 . . . . . . . . . . . Regen/Repaired (Parts) 351 | . . . . . . 145 20 . . 62 45 . . . . 79 Core Remaining (%) 67 | 100 76 53 . . . 39 . . 30 94 . . 65 . 85 . Volleys Fired 273 | 3 34 133 85 6 10 . 2 . . . . . . . . . Largest 2 | 2 2 2 2 2 2 . 1 . . . . . . . . . Hottest 133 | 80 80 121 133 124 129 . 61 . . . . . . . . . Shots Fired 472 | 4 68 243 126 9 20 . 2 . . . . . . . . . Gun 412 | 4 52 243 95 6 10 . 2 . . . . . . . . . Cannon 60 | . 16 . 31 3 10 . . . . . . . . . . . Launcher . | . . . . . . . . . . . . . . . . . Special . | . . . . . . . . . . . . . . . . . Kinetic 185 | . 18 167 . . . . . . . . . . . . . . Thermal 249 | . 16 76 126 9 20 . 2 . . . . . . . . . Explosive . | . . . . . . . . . . . . . . . . . Electromagnetic 38 | 4 34 . . . . . . . . . . . . . . . Robot Hit Streak 17 | 2 4 15 17 4 8 . 9 . . . . . . . . . Robot Miss Streak 5 | 2 5 4 3 1 1 . 1 . . . . . . . . . Penetration Max . | . . . . . . . . . . . . . . . . . Secondary Targets 5 | . . 4 1 . . . . . . . . . . . . . Max Gunslinging Chain 1 | . . 1 1 . . . . . . . . . . . . . Shots Hit Robots 378 | 2 32 164 115 7 14 . 10 . 8 2 2 . 13 3 2 4 Core Hits 152 | 1 18 62 41 5 9 . 3 . 3 1 1 . 5 . 1 2 Critical Kills . | . . . . . . . . . . . . . . . . . Critical Parts Destroyed 2 | . . 2 . . . . . . . . . . . . . . Critical Strikes 15 | . . 6 3 . 4 . 2 . . . . . . . . . Burn 9 | . . 4 1 . 4 . . . . . . . . . . . Destroy 2 | . . 2 . . . . . . . . . . . . . . Sever 4 | . . . 2 . . . 2 . . . . . . . . . Melee Attacks 269 | . . 15 35 1 . . 38 . 35 28 23 . 44 10 18 22 Impact 2 | . . 2 . . . . . . . . . . . . . . Slashing 252 | . . 13 35 1 . . 38 . 35 28 23 . 44 3 10 22 Piercing 15 | . . . . . . . . . . . . . . 7 8 . Sneak Attacks 22 | . . 2 1 . . . 2 . 5 1 1 . 4 1 2 3 Combat Hostiles 1 | . . . . . . . . . 1 . . . . . . . Follow-up Attacks . | . . . . . . . . . . . . . . . . . Damage Inflicted 8561 | 30 540 2847 2325 149 312 . 478 . 424 108 128 . 555 160 117 388 Guns 4340 | 30 270 2652 1127 54 187 . 20 . . . . . . . . . Cannons 896 | . 214 . 495 62 125 . . . . . . . . . . . Explosions 56 | . 56 . . . . . . . . . . . . . . . Melee 3263 | . . 195 703 33 . . 458 . 424 108 128 . 549 160 117 388 Ramming 6 | . . . . . . . . . . . . . 6 . . . Kinetic 2056 | . 67 1989 . . . . . . . . . . . . . . Thermal 3003 | . 270 663 1622 116 312 . 20 . . . . . . . . . Explosive . | . . . . . . . . . . . . . . . . . Electromagnetic 233 | 30 203 . . . . . . . . . . . . . . . Impact . | . . . . . . . . . . . . . . . . . Slashing 2986 | . . 195 703 33 . . 458 . 424 108 128 . 549 . . 388 Piercing 277 | . . . . . . . . . . . . . . 160 117 . Highest Corruption 11 | . . . . . . . . 9 11 1 3 . 2 . 2 5 Average Corruption 7 | . . . . . . . . 9 9 1 2 . 1 . 1 2 Corruption Purged 3 | . . . . . . . . . . . 3 . . . . . Corruption Blocked . | . . . . . . . . . . . . . . . . . Effects 22 | . . . . . . . . 3 15 . 2 . . . 1 1 Message Errors 7 | . . . . . . . . . 5 . 1 . . . . 1 Matter Fused 6 | . . . . . . . . 1 3 . 1 . . . 1 . Heat Flow Errors 4 | . . . . . . . . 1 3 . . . . . . . Energy Discharges 2 | . . . . . . . . 1 1 . . . . . . . Data Loss (minor) 1 | . . . . . . . . . 1 . . . . . . . Misdirections 2 | . . . . . . . . . 2 . . . . . . . Overload Shots . | . . . . . . . . . . . . . . . . . Overflow Damage 517 | . . 30 12 . . . 67 . 52 32 47 . 102 35 . 140 Projectiles 12 | . . . 12 . . . . . . . . . . . . . Explosions . | . . . . . . . . . . . . . . . . . Melee 505 | . . 30 . . . . 67 . 52 32 47 . 102 35 . 140 Knockbacks . | . . . . . . . . . . . . . . . . . Impact . | . . . . . . . . . . . . . . . . . Kinetic . | . . . . . . . . . . . . . . . . . Secondary . | . . . . . . . . . . . . . . . . . Self-Inflicted Damage 21 | . 18 . . . . . . . . . . . 3 . . . Shots 1 | . 1 . . . . . . . . . . . . . . . Rammed 1 | . . . . . . . . . . . . . 1 . . . Targets Rammed 1 | . . . . . . . . . . . . . 1 . . . Kicked . | . . . . . . . . . . . . . . . . . Crushed . | . . . . . . . . . . . . . . . . . Highest Temperature 304 | 18 239 304 263 36 26 . 16 248 265 . . . . . . . Average Temperature 77 | 12 73 81 69 19 20 . 10 131 129 . . . . . . . Received Heat Transfer 1826 | . 90 675 801 18 36 . 153 . 18 . 9 . 9 . 17 . Effects 5 | . . 2 3 . . . . . . . . . . . . . Energy Bleed 2 | . . 2 . . . . . . . . . . . . . . Interference 3 | . . . 3 . . . . . . . . . . . . . Siege Activations . | . . . . . . . . . . . . . . . . . Martial Activations . | . . . . . . . . . . . . . . . . . Shielding Activations . | . . . . . . . . . . . . . . . . . Robots Disrupted . | . . . . . . . . . . . . . . . . . Combat Hostiles . | . . . . . . . . . . . . . . . . . Robots Corrupted . | . . . . . . . . . . . . . . . . . Combat Hostiles . | . . . . . . . . . . . . . . . . . Parts Fried . | . . . . . . . . . . . . . . . . . Impact Corruptions . | . . . . . . . . . . . . . . . . . Robots Melted . | . . . . . . . . . . . . . . . . . Combat Hostiles . | . . . . . . . . . . . . . . . . . Parts Melted 13 | . 2 3 5 . 3 . . . . . . . . . . . Heat Transferred 7204 | . 544 1961 3589 222 851 . 37 . . . . . . . . . Parts Sabotaged . | . . . . . . . . . . . . . . . . . Parts Stolen . | . . . . . . . . . . . . . . . . . Parts Stripped . | . . . . . . . . . . . . . . . . . Power Chain Reactions 1 | . 1 . . . . . . . . . . . . . . . Alert | -11 -10 -9 -8 -8 -8 -8 -6 -6 -6 -5 -4 -4 -4 -3 -3 -2 ------- Run | Yrd Mat Mat Mat Sto Rec Scr Fac Was Fac Fac Fac Was Fac Res Tes Res Maximum Alert Level 1 | . . 1 1 . . . 1 . . 1 . . . . . . Low Security (%) 79 | 100 100 65 17 100 100 . 72 100 100 90 100 100 100 100 100 100 Level 1 20 | . . 34 82 . . . 27 . . 9 . . . . . . Level 2 . | . . . . . . . . . . . . . . . . . Level 3 . | . . . . . . . . . . . . . . . . . Level 4 . | . . . . . . . . . . . . . . . . . Level 5 . | . . . . . . . . . . . . . . . . . High Security . | . . . . . . . . . . . . . . . . . Max Security . | . . . . . . . . . . . . . . . . . Peak Influence 365 | . 141 365 300 108 88 . 272 75 72 219 97 26 190 77 90 56 Initial 142 | . . 40 142 84 24 . . 75 24 33 87 26 . 73 22 . Average 95 | . 60 166 226 80 27 . 109 59 11 80 35 9 50 46 23 14 Influence Increases 4528 | 5 330 984 642 80 242 . 551 . 193 378 236 . 323 57 220 287 Destroy 0b10 Robot/C 1520 | . 200 600 420 40 120 . 20 . 20 . . . 80 . . 20 Destroy 0b10 Robot/NC 225 | 5 20 85 35 . 15 . 10 . 15 5 5 . 15 . . 15 Destroy Leader 338 | . 44 162 90 20 . . 2 . 10 . . . 10 . . . Allied During Kill 2 | . . . . . 2 . . . . . . . . . . . Successful Hack 371 | . 33 33 13 4 15 . 44 . 34 29 36 . 3 15 76 36 Select Force Hacks 90 | . . . . . 90 . . . . . . . . . . . Disable Machine 150 | . 15 . 15 . . . 15 . . 30 15 . . 15 45 . Destroy Structure 287 | . 3 14 9 1 . . 25 . 24 44 30 . 50 12 24 51 Partial Spotted 120 | . . . . . . . 15 . 15 15 30 . 30 . 15 . Lose Combat Pursuer 1425 | . 15 90 60 15 . . 420 . 75 255 120 . 135 15 60 165 Influence Decreases 4499 | 5 234 742 780 216 299 7 335 181 159 268 338 77 183 157 260 258 Entered New Map 831 | . . 56 196 116 40 7 . 141 11 36 92 51 . 67 18 . Time Decay 3129 | 5 224 616 464 90 259 . 265 40 138 212 196 26 143 80 221 150 Lost Part 491 | . 10 70 120 10 . . 70 . 10 10 12 . 40 10 21 108 Lost Ally 10 | . . . . . . . . . . 10 . . . . . . Purge Threat 38 | . . . . . . . . . . . 38 . . . . . Squads Dispatched 49 | . 2 4 2 1 . . 5 . 7 7 9 . 4 2 4 2 Investigation 26 | . 1 1 . . . . 2 . 6 4 7 . 2 1 1 1 Extermination 9 | . . . . . . . 1 . 1 1 1 . 1 1 2 1 Reinforcement 10 | . 1 3 2 . . . 2 . . . 1 . 1 . . . Assault 3 | . . . . . . . . . . 2 . . . . 1 . Garrison 1 | . . . . 1 . . . . . . . . . . . . Intercept . | . . . . . . . . . . . . . . . . . Searches Triggered . | . . . . . . . . . . . . . . . . . Construction Impeded . | . . . . . . . . . . . . . . . . . Haulers Reinforced . | . . . . . . . . . . . . . . . . . Active Scanning Responses . | . . . . . . . . . . . . . . . . . Cargo Convoy Interrupts . | . . . . . . . . . . . . . . . . . Stealth | -11 -10 -9 -8 -8 -8 -8 -6 -6 -6 -5 -4 -4 -4 -3 -3 -2 --------- Run | Yrd Mat Mat Mat Sto Rec Scr Fac Was Fac Fac Fac Was Fac Res Tes Res Distress Signals 17 | . 1 2 . . . . 1 . 1 2 2 . 2 . 4 2 Communications Jammed . | . . . . . . . . . . . . . . . . . Distress Signals . | . . . . . . . . . . . . . . . . . Times Spotted 283 | . 19 46 29 5 4 . 35 6 9 17 14 . 31 3 37 28 Peak Tracking Total 19 | . 5 6 7 3 2 . 9 6 6 8 6 . 11 2 10 19 Tactical Retreats 48 | . 1 3 3 1 . . 10 . 3 7 3 . 5 1 5 6 Traps | -11 -10 -9 -8 -8 -8 -8 -6 -6 -6 -5 -4 -4 -4 -3 -3 -2 ------- Run | Yrd Mat Mat Mat Sto Rec Scr Fac Was Fac Fac Fac Was Fac Res Tes Res Traps Triggered 13 | . 1 1 . . . . 1 . . 4 2 . . . 2 2 Indirectly . | . . . . . . . . . . . . . . . . . Trap Hack Attempts . | . . . . . . . . . . . . . . . . . Triggered . | . . . . . . . . . . . . . . . . . Disarmed 10 | . . 4 . . . . . . . . . . . . 6 . Reprogrammed . | . . . . . . . . . . . . . . . . . Reused . | . . . . . . . . . . . . . . . . . Traps Extracted . | . . . . . . . . . . . . . . . . . Installed . | . . . . . . . . . . . . . . . . . Triggered . | . . . . . . . . . . . . . . . . . Machines | -11 -10 -9 -8 -8 -8 -8 -6 -6 -6 -5 -4 -4 -4 -3 -3 -2 ---------- Run | Yrd Mat Mat Mat Sto Rec Scr Fac Was Fac Fac Fac Was Fac Res Tes Res Machines Disabled 11 | . 2 . 1 . . . 1 . . 2 1 . . 1 3 . Max in Single Turn 1 | . 1 . 1 . . . 1 . . 1 1 . . 1 1 . Garrison Access 7 | . . . 1 . . . . . . 2 2 . . 1 1 . Machines Repaired . | . . . . . . . . . . . . . . . . . Machines Dismantled . | . . . . . . . . . . . . . . . . . Machines Sabotaged . | . . . . . . . . . . . . . . . . . Overloaded Fab Kills . | . . . . . . . . . . . . . . . . . Hacking | -11 -10 -9 -8 -8 -8 -8 -6 -6 -6 -5 -4 -4 -4 -3 -3 -2 --------- Run | Yrd Mat Mat Mat Sto Rec Scr Fac Was Fac Fac Fac Was Fac Res Tes Res Machines Accessed 109 | . 6 12 5 3 9 2 6 . 13 13 15 . 4 4 11 6 Terminals 67 | . 6 8 4 3 6 . 3 . 8 6 6 . 2 2 9 4 Fabricators 7 | . . . . . . . . . 1 2 3 . . . . 1 Repair Stations 6 | . . 2 . . . . 1 . . 1 1 . . . . 1 Recycling Units 17 | . . 1 . . 3 . 2 . 3 2 3 . 2 1 . . Scanalyzers 4 | . . 1 . . . . . . 1 1 . . . . 1 . Garrison Access 6 | . . . 1 . . . . . . 1 2 . . 1 1 . Total Hacks 344 | . 27 48 13 6 25 18 19 . 40 38 41 . 14 7 28 20 Successful 227 | . 12 28 8 2 19 18 9 . 24 26 35 . 11 3 22 10 Failed 116 | . 14 20 5 4 6 . 10 . 16 12 6 . 3 4 6 10 Catastrophic 8 | . . . . . 1 . 1 . 3 2 . . . . 1 . Database Lockouts 1 | . 1 . . . . . . . . . . . . . . . Manual 143 | . 18 12 8 1 16 . 7 . 18 14 18 . 6 6 9 10 Terminals 235 | . 27 26 12 6 20 . 12 . 31 20 24 . 12 5 24 16 Fabricators 24 | . . . . . . . . . 3 9 10 . . . . 2 Repair Stations 15 | . . 6 . . . . 3 . . 2 2 . . . . 2 Recycling Units 23 | . . 3 . . 5 . 4 . 3 2 3 . 2 1 . . Scanalyzers 21 | . . 13 . . . . . . 3 2 . . . . 3 . Garrison Access 8 | . . . 1 . . . . . . 3 2 . . 1 1 . Terminal Hacks 111 | . 8 8 3 2 11 18 3 . 12 9 14 . 7 . 12 4 Record 17 | . . . . . . 17 . . . . . . . . . . Part Schematic 5 | . 1 . . . 1 . . . . . 2 . 1 . . . Robot Analysis 4 | . . . . . 3 . . . . . . . 1 . . . Prototype ID Bank 15 | . 2 2 . 1 3 . 1 . 2 . . . . . 3 1 Open Door 1 | . . . . 1 . . . . . . . . . . . . Level Access Points 1 | . . . . . . . . . . 1 . . . . . . Branch Access Points 6 | . . 1 1 . . . . . 1 1 . . 1 . . 1 Emergency Access Points 2 | . . . . . . . . . 1 1 . . . . . . Machine Index 4 | . . . . . . . 1 . 1 . 1 . 1 . . . Terminal Index 8 | . 1 . . . 1 . . . 1 1 1 . 1 . 1 1 Fabricator Index 1 | . . . . . . . . . . . . . . . 1 . Scanalyzer Index 1 | . . . . . 1 . . . . . . . . . . . Garrison Index 1 | . . . . . . . . . . 1 . . . . . . Alert Level 5 | . . 1 1 . 1 . . . . 1 1 . . . . . Unreport Threat 1 | . . . . . . . . . . . 1 . . . . . Locate Traps 10 | . . 1 . . . . . . 2 1 2 . 1 . 3 . Disarm Traps 2 | . . 1 . . . . . . . . . . . . 1 . Dispatch Records 1 | . 1 . . . . . . . . . . . . . . . Patrol Status 2 | . . . 1 . . . . . 1 . . . . . . . Extermination Status 1 | . . . . . . . . . . . 1 . . . . . Assault Status 1 | . . . . . . . . . 1 . . . . . . . Recall Investigation 1 | . . . . . . . . . . . 1 . . . . . Recall Extermination 2 | . . . . . . . . . . . 1 . . . 1 . Hauler Manifests 1 | . 1 . . . . . . . . . . . . . . . Registered Components 6 | . 1 . . . . . 1 . 1 1 1 . 1 . . . Registered Prototypes 1 | . . . . . . . . . . . 1 . . . . . Zone Layout 9 | . 1 2 . . 1 . . . 1 1 1 . . . 1 1 Proto ID Catalog 1 | . . . . . . 1 . . . . . . . . . . Protovariant Controls 1 | . . . . . . . . . . . . . . . 1 . Fabricator Hacks 15 | . . . . . . . . . 2 4 7 . . . . 2 Network Status 5 | . . . . . . . . . 1 1 3 . . . . . Load Schematic 7 | . . . . . . . . . 1 2 3 . . . . 1 Build 3 | . . . . . . . . . . 1 1 . . . . 1 Repair Station Hacks 9 | . . 1 . . . . 2 . . 2 2 . . . . 2 Scan Component 5 | . . 1 . . . . 1 . . 1 1 . . . . 1 Repair 4 | . . . . . . . 1 . . 1 1 . . . . 1 Recycling Unit Hacks 3 | . . . . . 2 . 1 . . . . . . . . . Report Inventory 3 | . . . . . 2 . 1 . . . . . . . . . Scanalyzer 18 | . . 11 . . . . . . 3 2 . . . . 2 . Insert Component 8 | . . 5 . . . . . . 1 1 . . . . 1 . Analyze 10 | . . 6 . . . . . . 2 1 . . . . 1 . Garrison Access Hacks 6 | . . . 1 . . . . . . 1 2 . . 1 1 . Seal Access 6 | . . . 1 . . . . . . 1 2 . . 1 1 . Unauthorized Hacks 65 | . 4 8 4 . 6 . 3 . 7 8 10 . 4 2 7 2 Terminals 38 | . 4 4 4 . 3 . 1 . 3 4 4 . 2 1 6 2 Track 2 | . . 1 . . . . . . 1 . . . . . . . Assimilate 3 | . . . . . . . . . . 1 . . . . 2 . Botnet 28 | . 3 2 3 . 3 . 1 . 2 3 3 . 2 1 3 2 Operators 5 | . 1 1 1 . . . . . . . 1 . . . 1 . Fabricators 6 | . . . . . . . . . 1 2 3 . . . . . Prioritize 2 | . . . . . . . . . . 1 1 . . . . . Recompile 4 | . . . . . . . . . 1 1 2 . . . . . Repair Stations 1 | . . 1 . . . . . . . . . . . . . . Mechanics 1 | . . 1 . . . . . . . . . . . . . . Recycling Units 19 | . . 3 . . 3 . 2 . 3 2 3 . 2 1 . . Reject 1 | . . 1 . . . . . . . . . . . . . . Recyclers 1 | . . 1 . . . . . . . . . . . . . . Mask 1 | . . 1 . . . . . . . . . . . . . . Tunnel 3 | . . . . . 3 . . . . . . . . . . . Fedlink 13 | . . . . . . . 2 . 3 2 3 . 2 1 . . Scanalyzers 1 | . . . . . . . . . . . . . . . 1 . Researchers 1 | . . . . . . . . . . . . . . . 1 . Garrison Access . | . . . . . . . . . . . . . . . . . Data Cores Recovered 3 | . . . 1 . . . . . . 1 . . 1 . . . Used . | . . . . . . . . . . . . . . . . . Hacking Detections 73 | . 6 10 4 2 6 . 5 . 7 7 8 . 2 2 10 4 Full Trace Events 8 | . 1 . . . 2 . . . 2 . 1 . . . 1 1 Feedback Events 1 | . . . . . . . . . 1 . . . . . . . Corruption 1 | . . . . . . . . . 1 . . . . . . . Feedback Blocked . | . . . . . . . . . . . . . . . . . Robot Schematics Acquired . | . . . . . . . . . . . . . . . . . Robots Built . | . . . . . . . . . . . . . . . . . Authchips . | . . . . . . . . . . . . . . . . . Time . | . . . . . . . . . . . . . . . . . Total Robot Build Rating . | . . . . . . . . . . . . . . . . . Part Schematics Acquired 12 | . 1 4 . . 1 . . . 1 1 2 . 1 . 1 . Parts Built 6 | . . . . . . . . . . 2 2 . . . . 2 Authchips 2 | . . . . . . . . . . 1 . . . . . 1 Time 133 | . . . . . . . . . . 47 47 . . . . 39 Total Part Build Rating 34 | . . . . . . . . . . 10 10 . . . . 14 Parts Repaired 4 | . . . . . . . 1 . . 1 1 . . . . 1 Time 168 | . . . . . . . 19 . . 34 68 . . . . 47 Parts Recycled . | . . . . . . . . . . . . . . . . . Recycled Matter . | . . . . . . . . . . . . . . . . . Retrieved Matter . | . . . . . . . . . . . . . . . . . Retrieved Components . | . . . . . . . . . . . . . . . . . Parts Scanalyzed 7 | . . 4 . . . . . . 1 1 . . . . 1 . Part Schematics Acquired 7 | . . 4 . . . . . . 1 1 . . . . 1 . Parts Damaged 1 | . . 1 . . . . . . . . . . . . . . Bothacking | -11 -10 -9 -8 -8 -8 -8 -6 -6 -6 -5 -4 -4 -4 -3 -3 -2 ------------ Run | Yrd Mat Mat Mat Sto Rec Scr Fac Was Fac Fac Fac Was Fac Res Tes Res Used RIF Installer . | . . . . . . . . . . . . . . . . . Robots Hacked . | . . . . . . . . . . . . . . . . . Non-combat . | . . . . . . . . . . . . . . . . . Combat . | . . . . . . . . . . . . . . . . . Robot Hacks Applied . | . . . . . . . . . . . . . . . . . Relay Couplers Released 2 | . . . . . . . . . . 2 . . . . . . Machine Destruction 2 | . . . . . . . . . . 2 . . . . . . Fabnet Peak Effective % . | . . . . . . . . . . . . . . . . . Robots Rewired 2 | . . . . . 2 . . . . . . . . . . . Allies Hacked . | . . . . . . . . . . . . . . . . . Hacks Repelled . | . . . . . . . . . . . . . . . . . Allies | -11 -10 -9 -8 -8 -8 -8 -6 -6 -6 -5 -4 -4 -4 -3 -3 -2 -------- Run | Yrd Mat Mat Mat Sto Rec Scr Fac Was Fac Fac Fac Was Fac Res Tes Res Total Allies 4 | . . . . . 2 . . . . 1 . . . . 1 . Largest Group 2 | . . . . . 2 . . . . 1 . . . . 1 . Highest-Rated Group 26 | . . . . . 20 . . . . 10 . . . . 26 . Highest-Rated Ally 26 | . . . . . 10 . . . . 10 . . . . 26 . Total Orders . | . . . . . . . . . . . . . . . . . Ally Attacks . | . . . . . . . . . . . . . . . . . Total Damage . | . . . . . . . . . . . . . . . . . Kills . | . . . . . . . . . . . . . . . . . Allies Corrupted . | . . . . . . . . . . . . . . . . . Allies Melted . | . . . . . . . . . . . . . . . . . Intel | -11 -10 -9 -8 -8 -8 -8 -6 -6 -6 -5 -4 -4 -4 -3 -3 -2 ------- Run | Yrd Mat Mat Mat Sto Rec Scr Fac Was Fac Fac Fac Was Fac Res Tes Res Active Infowar (turns) 6483 | . 199 1503 321 127 28 . 589 81 484 489 650 103 651 175 794 289 Sensors 5689 | . 199 1457 315 126 28 . 564 70 264 396 594 103 478 13 793 289 Terrain 5597 | . . 1487 318 125 27 . 226 81 484 489 650 101 583 175 687 164 Jamming 248 | . . . . . . . . . . . 248 . . . . . ECM 113 | . . . . . . . . . . . . . 30 . 71 12 Robot Analysis Total 4 | . . . . . 3 . . . . . . . 1 . . . Derelict Logs Recovered . | . . . . . . . . . . . . . . . . . Drone Launches . | . . . . . . . . . . . . . . . . . Drone Recoveries . | . . . . . . . . . . . . . . . . . Exploration | -11 -10 -9 -8 -8 -8 -8 -6 -6 -6 -5 -4 -4 -4 -3 -3 -2 ------------- Run | Yrd Mat Mat Mat Sto Rec Scr Fac Was Fac Fac Fac Was Fac Res Tes Res Turns Passed 10520 | 62 594 2044 1174 190 667 1257 672 81 486 489 656 103 654 175 805 411 Spaces Moved 10600 | 45 506 1160 565 136 574 1255 714 130 762 874 959 284 831 216 1008 581 Core 50 | 1 . . 7 . . . 5 . . . . . 16 . . 21 Treads 343 | . . 343 . . . . . . . . . . . . . . Legs 273 | . . . 250 . . . . . . . . . . . 23 . Wheels 3642 | 44 506 817 306 136 574 1255 4 . . . . . . . . . Hover 568 | . . . . . . . 44 130 57 . . . 20 216 101 . Flight 5724 | . . . 2 . . . 661 . 705 874 959 284 795 . 884 560 Fastest Speed 28 | 50 90 90 37 100 100 100 37 60 29 28 29 34 34 60 39 39 Average Speed 65 | 89 90 115 118 100 100 100 43 60 33 31 31 34 38 63 43 43 Slowest Speed 350 | 100 90 240 350 100 100 100 350 60 195 32 34 34 100 66 125 200 Overloaded Moves . | . . . . . . . . . . . . . . . . . Propulsion Burnouts . | . . . . . . . . . . . . . . . . . Robots Hopped 46 | . . . . . . . 1 . . . . . 13 . 20 12 Potential Cave-ins 4 | . . . . . . . . . . . 4 . . . . . Cave-ins Triggered 2 | . . . . . . . 1 . . . 1 . . . . . Exploration Rate (%) 45 | 3 77 60 35 30 98 88 22 80 22 29 25 80 18 8 77 19 Regions Visited 16 Branch Regions 4 Pre-discovered Areas 7 | . . . . . 3 3 1 . . . . . . . . . Known Exits Taken 9 | . . . 1 1 1 1 . . 1 1 . . 1 1 1 . Unknown Exits Taken 3 | 1 1 1 . . . . . . . . . . . . . . Scrap Searched 1 | . . . . . . 1 . . . . . . . . . . Spaces Dug 164 | . . 7 7 . . . 25 . 24 22 19 . 25 6 12 17 Terrain Destroyed 166 | . 2 7 7 . . . 25 . 24 22 19 . 25 6 12 17 Melee 164 | . . 7 7 . . . 25 . 24 22 19 . 25 6 12 17 Projectile . | . . . . . . . . . . . . . . . . . AOE 2 | . 2 . . . . . . . . . . . . . . . Terrain Rammed . | . . . . . . . . . . . . . . . . . Walls Destroyed . | . . . . . . . . . . . . . . . . . Machines Disabled . | . . . . . . . . . . . . . . . . . Actions | -11 -10 -9 -8 -8 -8 -8 -6 -6 -6 -5 -4 -4 -4 -3 -3 -2 --------- Run | Yrd Mat Mat Mat Sto Rec Scr Fac Was Fac Fac Fac Was Fac Res Tes Res Total 13280 | 59 579 1650 885 176 646 1257 1016 132 942 1038 1277 289 1089 233 1325 687 Wait 1774 | 2 19 247 147 23 35 3 227 1 122 101 277 . 217 2 271 80 Move 10499 | 44 505 1159 564 135 573 1254 712 129 761 873 958 283 806 215 967 561 Hop 40 | . . . . . . . 1 . . . . . 11 . 20 8 Pick Up 34 | 4 3 9 3 . . . 2 . 4 3 3 1 . . 2 . Fast Attach 97 | 6 5 12 16 3 2 . 6 1 7 5 6 2 2 3 10 11 Attach 37 | . . 5 7 . . . 11 1 4 1 3 1 1 2 1 . Detach 39 | . 3 3 7 . . . 12 . 4 1 2 . 1 1 3 2 Swap 90 | . 6 50 14 6 4 . 1 . . 1 1 . 3 . 3 1 Drop 62 | . 4 17 7 2 3 . 4 . 5 1 3 2 3 . 9 2 Fire 273 | 3 34 133 85 6 10 . 2 . . . . . . . . . Melee 269 | . . 15 35 1 . . 38 . 35 28 23 . 44 10 18 22 Ram 1 | . . . . . . . . . . . . . 1 . . . Kick . | . . . . . . . . . . . . . . . . . Crush . | . . . . . . . . . . . . . . . . . Escape Stasis 46 | . . . . . . . . . . 24 1 . . . 21 . Rewire 19 | . . . . . 19 . . . . . . . . . . . Trap . | . . . . . . . . . . . . . . . . . Miscellaneous . | . . . . . . . . . . . . . . . . . Route ------- -11/Scrapyard -10/Materials (discovered 4 exits: *Mat x2 / [*Min x2]) -9/Materials (discovered 4 exits: *Mat x2 / *Min x2) -8/Materials (discovered 3 exits: [*Fac] / *Sto x2) -8/Storage -8/Recycling (discovered 2 exits: *Fac / *Scr) -8/Scraptown (discovered 2 exits: *Fac x2) -6/Factory (discovered 6 exits: Fac x4 / Low / Ext) -6/Waste -6/Factory (discovered 5 exits: *Fac / Low x2 / Ext x2) -5/Factory (discovered 6 exits: *Fac x4 / Upp x2) -4/Factory -4/Waste -4/Factory (discovered 3 exits: *Res / *Upp x2) -3/Research (discovered 2 exits: *Res / *Tes) -3/Testing -2/Research (discovered 4 exits: Acc x2 / Qua x2) History --------- Turn | Location | Event 30 | -11/Scrapyard | Discovered new exit (range 16) 63 | -11/Scrapyard | Entered Materials 97 | -10/Materials | Discovered new exit (range 15) 310 | -10/Materials | Build established: Mutant 398 | -10/Materials | Discovered new exit (range 7) 494 | -10/Materials | Discovered new exit (range 15) 532 | -10/Materials | Central database locked down 581 | -10/Materials | Discovered new exit (range 16) 657 | -10/Materials | Entered another Materials area 657 | -9/Materials | Evolved 2 slots: Utility x2 1140 | -9/Materials | Discovered new exit (range 10) 1240 | -9/Materials | Build established: Skirmisher 1601 | -9/Materials | Discovered new exit (range 11) 2159 | -9/Materials | Identified exit to Mines 2701 | -9/Materials | Entered another Materials area 2701 | -8/Materials | Evolved 2 slots: Utility x2 2996 | -8/Materials | Lost 7 parts (1p2n2u2w) 3244 | -8/Materials | Discovered new exit (range 16) 3366 | -8/Materials | Discovered new exit (range 3) 3542 | -8/Materials | Core integrity fell below 50% 3655 | -8/Materials | Build established: Scavenger-Mutant 3725 | -8/Materials | Identified exit to Storage 3875 | -8/Materials | Entered Storage 4026 | -8/Storage | Garrison activated, responded to threat 4061 | -8/Storage | Used back door to open Recycling access 4061 | -8/Storage | Discovered new exit (range 5) 4064 | -8/Storage | Identified exit to Recycling 4065 | -8/Storage | Entered Recycling 4518 | -8/Recycling | Discovered new exit (range 5) 4709 | -8/Recycling | Scanned before Scraplab entrance 4723 | -8/Recycling | Entered Scraplab 4731 | -8/Recycling | Discovered new exit (range 2) 4731 | -8/Recycling | Identified exit to Scraptown 4732 | -8/Recycling | Entered Scraptown 5057 | -8/Scraptown | Discovered new exit (range 5) 5082 | -8/Scraptown | Identified exit to Factory 5164 | -8/Scraptown | Visited CR-KLE's Repair Center 5171 | -8/Scraptown | CR-KLE repaired 5 parts 5198 | -8/Scraptown | Visited Awakened 5208 | -8/Scraptown | Visited The Evicted 5221 | -8/Scraptown | Visited Spacefarers 5334 | -8/Scraptown | Visited TADAMA 5353 | -8/Scraptown | Visited Assassins FH 5457 | -8/Scraptown | Visited UFD Registry 5457 | -8/Scraptown | Registered with UFD as "Wirecutter" 5479 | -8/Scraptown | Visited Curators Association 5526 | -8/Scraptown | Visited Botcube Research 5538 | -8/Scraptown | Visited Science Guys 5569 | -8/Scraptown | Visited Research Penetration Think Tank 5591 | -8/Scraptown | Visited Scrap Suit Storage 5600 | -8/Scraptown | Visited Cartography Club 5671 | -8/Scraptown | Learned location of Lower Caves (-6) 5671 | -8/Scraptown | Learned location of Proximity Caves (-6) 5671 | -8/Scraptown | Learned location of Testing (-3) 5671 | -8/Scraptown | Learned 12 Materials zone layouts 5671 | -8/Scraptown | Learned 16 Factory zone layouts 5671 | -8/Scraptown | Learned 16 Research zone layouts 5671 | -8/Scraptown | Learned 4 Storage zone layouts 5671 | -8/Scraptown | Learned 4 Recycling zone layouts 5671 | -8/Scraptown | Learned 8 Upper Caves zone layouts 5671 | -8/Scraptown | Learned 12 Upper Caves zone layouts 5671 | -8/Scraptown | Learned 16 Proximity Caves zone layouts 5671 | -8/Scraptown | Learned location of 1 exit from Factory 5671 | -8/Scraptown | Learned location of 3 exits from Lower Caves 5671 | -8/Scraptown | Learned location of 2 exits from Upper Caves 5726 | -8/Scraptown | Visited Observation Area 5773 | -8/Scraptown | Visited Scrapoid Research Area 5936 | -8/Scraptown | Met Optimus 5936 | -8/Scraptown | Accepted into 0bPrime 5989 | -8/Scraptown | Entered Factory 5989 | -6/Factory | Evolved 4 slots: Propulsion x1, Utility x3 5990 | -6/Factory | Identified exit to Factory 5990 | -6/Factory | Identified exit to Extension 5991 | -6/Factory | Identified exit to Lower Caves 6022 | -6/Factory | Loaded intel: 8 recycling unit locations 6249 | -6/Factory | Learned location of Protoforge (-2) 6449 | -6/Factory | Crushed by falling debris 6501 | -6/Factory | Repaired Imp. Sensor Array 6644 | -6/Factory | Core integrity fell below 50% 6661 | -6/Factory | Manually triggered Chute Trap 6661 | -6/Factory | Sucked down chute 6661 | -6/Factory | Entered Waste 6675 | -6/Waste | Spotted C-40 Crusher 6676 | -6/Waste | EMP discharged 6679 | -6/Waste | Spotted C-40 Crusher 6679 | -6/Waste | Spotted C-40 Crusher 6685 | -6/Waste | Lost 7 parts (1p2n2u2w) 6701 | -6/Waste | Spotted C-40 Crusher 6703 | -6/Waste | Spotted C-40 Crusher 6721 | -6/Waste | Spotted C-40 Crusher 6737 | -6/Waste | Discovered new exit (range 10) 6742 | -6/Waste | Identified exit to Factory 6742 | -6/Waste | Entered Factory 6851 | -6/Factory | System corruption reached 10% 6929 | -6/Factory | Loaded intel: 8 recycling unit locations 6952 | -6/Factory | Build established: Hacker-Scout 7209 | -6/Factory | Discovered exit to Factory (range 3) 7228 | -6/Factory | Entered another Factory area 7228 | -5/Factory | Evolved 2 slots: Propulsion x1, Utility x1 7342 | -5/Factory | Repaired Mic. Antimatter Reactor 7427 | -5/Factory | Discovered new exit (range 16) 7433 | -5/Factory | Identified exit to Upper Caves 7488 | -5/Factory | Identified exit to Factory 7550 | -5/Factory | Loaded intel: 8 recycling unit locations 7710 | -5/Factory | Fabricated Nuclear Pulse Thruster (x2) 7717 | -5/Factory | Entered another Factory area 7717 | -4/Factory | Evolved 2 slots: Utility x2 7776 | -4/Factory | Fabricated Nuclear Pulse Thruster (x2) 8010 | -4/Factory | Repaired Mic. Antimatter Reactor 8088 | -4/Factory | Loaded intel: 8 recycling unit locations 8194 | -4/Factory | Crushed by falling debris 8220 | -4/Factory | Discovered new exit (range 6) 8222 | -4/Factory | Identified exit to Upper Caves 8239 | -4/Factory | Lost 3 parts (2n1u) 8373 | -4/Factory | Manually triggered Chute Trap 8373 | -4/Factory | Sucked down chute 8373 | -4/Factory | Entered Waste 8373 | -4/Waste | The area was eerily silent 8412 | -4/Waste | Discovered new exit (range 10) 8415 | -4/Waste | Identified exit to Factory 8432 | -4/Waste | Found Adv. Force Booster 8476 | -4/Waste | Entered Factory 8493 | -4/Factory | Build established: Wizard-Scout 8507 | -4/Factory | Loaded intel: 8 recycling unit locations 8786 | -4/Factory | Discovered new exit (range 14) 8790 | -4/Factory | Identified exit to Research 8885 | -4/Factory | Spotted B-86 Titan 9130 | -4/Factory | Entered Research 9130 | -3/Research | Evolved 2 slots: Propulsion x2 9149 | -3/Research | Lost 3 parts (2n1u) 9169 | -3/Research | Spotted B-86 Titan 9227 | -3/Research | Discovered new exit (range 11) 9235 | -3/Research | Identified exit to Testing 9241 | -3/Research | Discovered new exit (range 19) 9253 | -3/Research | Loaded intel: 5 recycling unit locations 9305 | -3/Research | Entered Testing 9378 | -3/Testing | Found Prototype Leg 9378 | -3/Testing | Identified Myomer Exoskeleton 9702 | -3/Testing | Build established: Hacker-Ninja 9759 | -3/Testing | Found Prototype Device 9759 | -3/Testing | Identified Exp. Shield Generator 9764 | -3/Testing | Found Prototype Processor 9764 | -3/Testing | Identified Exp. Signal Interpreter 9798 | -3/Testing | Discovered new exit (range 17) 9863 | -3/Testing | Identified exit to Research 10060 | -3/Testing | Spotted Striker 10060 | -3/Testing | Spotted Striker 10063 | -3/Testing | Protovariant out of control (PX-3RYZH20MSF) 10063 | -3/Testing | Unleashed a protovariant (PX-3RYZH20MSF) 10090 | -3/Testing | Scanned by Researcher 10101 | -3/Testing | Spotted Investigator 10110 | -3/Testing | Entered Research 10110 | -2/Research | Evolved 2 slots: Utility x2 10111 | -2/Research | Identified exit to Access 10306 | -2/Research | Repaired Broken Impulse Thruster Array 10389 | -2/Research | Fabricated Lrn. Sensor Array (x2) 10459 | -2/Research | Identified exit to Quarantine 10511 | -2/Research | Core integrity fell below 50% 10521 | -2/Research | Core integrity fell below 20% 10521 | -2/Research | Self-destructed Last Messages --------------- 10484_ U-05 Engineer builds a Door. 10486_ K-01 Serf destroyed. 10487_ Adv. ECM Suite destroyed. 10488_ Lrn. Sensor Array destroyed. 10493_ S-43 Plague destroyed. 10496_ Acquired 35 matter. 10498_ Acquired Xenon Bombardment Thruster. 10500_ Acquired Imp. Hacking Suite. 10502_ Acquired Adv. Sensor Array. 10505_ K-01 Serf collects debris. 10507_ U-05 Engineer destroyed. 10508_ K-01 Serf collects debris. 10509_ Xenon Bombardment Thruster destroyed. 10510_ Acquired 16 matter. 10511_ K-01 Serf collects debris. 10512_ M X:9BHJRBGMQHZ/7=TMZ/=C5HIM 10513_ System Shield destroyed. 10515_ K-01 Serf collects debris. 10517_ Vibroblade destroyed. 10520_ Adv. Sensor Array destroyed. Map ----- +----------------------------------------------------+ | ????????????????? ?# # ! #?????????????????? | | ????????????????? # # =#?????????????????? | | ?????????????????? # *# #?????????????????? | | ???????????????????+ [+ #?????????????????? | | ???????????????????# =#= #?????????????????? | | ???????????????????# # #?????????????????? | | ???????????????????# # #?????>???????????? | | ?#########?????????# # #?????????????????? | | ?# #?????????# # #?????????????????? | | ?# #?????????# ########?????????????????? | | ## #?????????# #????????????????????????? | | #! """ !#?????????#! #????????????????????????? | | # """ ##????????#=| #????????????????????????? | | + """ *##########%! #????????????????????????? | | # """ #%]]] #= = #????????????????????????? | | # """ #=]]] =# #????????????????????????? | | ## # ]] # ##???????????????????????? | | ?# # + "#???????????????????????? | | ?# ! # # ##???????????????????????? | | ?######### = # ###########??????????????? | | ?????????# =# # #??????????????? | | ?????????# # # #??????????????? | | ?????????########### # #??????????????? | | ???????????????????# # #??????????????? | | ???????????????????# + #??????????????? | | ???????????????????# #@ """ #??????????????? | | ???????????????????# # """ #??????????????? | | ???????????????????# # """ ???????????????? | | ???????????????????# ##########???????????????? | | ???????????????????# #????????????????????????? | | ???????????????????# #????????????????????????? | | ???????????????????# #????????????????????????? | | ???????????????????# ?????????????????????????? | | ???????????????????# ?????????????????????????? | | ???????????????????# ?????????????????????????? | | ???????????????????# ?????????????????????????? | | ???????????????????# ?????????????????????????? | | ???????????????????# ?????????????????????????? | | ????????????????????? ?????????????????????????? | | ?????????????????????????????????????????????????? | | ?????????????????????????????????????????????????? | | ?????????????????????????????????????????????????? | | ?????????????????????????????????????????????????? | | ?????????????????????????????????????????????????? | | ?????????????????????????????????????????????????? | | ?????????????????????????????????????????????????? | | ?????????????????????????????????????????????????? | | ?????????????????????????????????????????????????? | | ?????????????????????????????????????????????????? | | ?????????????????????????????????????????????????? | +----------------------------------------------------+ Best States ------------- Heat Dissipation 64 Energy Generation 25 Energy Capacity 350 Matter Stores 300 Matter Capacity 300 Sight Range 16 Robot Scan Range 18 Terrain Scan Range 24 Terrain Scan Density 410 ECM Strength 2 Jamming Range 12 Additional Mass Support 12 Armor Coverage 150 Power Shielding 66 Weapon Shielding 33 Evasion (%) 64 Recoil Reduction 2 Offensive Hacking 42 Defensive Hacking 20 Authchip Count 2 Item Schematics ----------------- Lrg. Storage Unit | -10/Materials | Hacked Hacking Suite | -9/Materials | Scanalyzed Imp. Terrain Scanner | -9/Materials | Scanalyzed Imp. Terrain Scan Processor | -9/Materials | Scanalyzed Enh. Autogun | -9/Materials | Scanalyzed Nuclear Pulse Thruster | -8/Recycling | Hacked Adv. Terrain Scanner | -6/Factory | Scanalyzed Adv. Signal Interpreter | -5/Factory | Scanalyzed Lrn. Sensor Array | -4/Factory | Hacked Impulse Thruster Array | -4/Factory | Hacked Lrn. Terrain Scanner | -4/Factory | Hacked Vibroblade | -3/Testing | Scanalyzed Robot Schematics ------------------ None Fabricated ------------ Nuclear Pulse Thruster | x2 | -5/Factory | Authchip Nuclear Pulse Thruster | x2 | -4/Factory Lrn. Sensor Array | x2 | -2/Research | Authchip Repaired ---------- Imp. Sensor Array | 9% | -6/Factory Mic. Antimatter Reactor | 11% | -5/Factory Mic. Antimatter Reactor | 35% | -4/Factory Impulse Thruster Array | 43% | -2/Research | Broken Alien Tech Used ----------------- None Achievements -------------- None Challenges ------------ None Game ------ Seed MeleeTachyonNullifier Manual? 0 Play Time 02:40:48 Cumulative 222.8 hours Start 2025.05.24 @ 14:59:26 End 2025.05.24 @ 17:40:59 Sessions 1 Manual Loads 0 Difficulty Rogue Special Mode None Game No. 174 Rogue 174 Adventurer 0 Explorer 0 Win Type - Total 6 Types 4/0/1/1/0/0/0/0/0/0 Lore% 74 Gallery% 67 Achievement% 55 Wizard Run 0 Options --------- Layout 2 ASCII 0 Keyboard 0 Movement Numpad Keybinds 0 Fullscreen 2 Font 16/Terminus Map View 55x47 Zoom Use 0% Tactical HUD 1 Map Filters NONE Filters NONE Steam 1 RUN: df953559-1721-4209-af3f-aceb97fff874